bitfinex-derivatives/quotes_SOLF0:USTF0_20250117
["timestamp","ask_amount","ask_price","bid_price","bid_amount"]
[1737087271898,4.7168,212.06,212.01,7.5442933]
[1737087272094,4.7168,212.06,212.05,7.5442933]
[1737087272496,7.5442933,212.1,212.0,4.7181]
[1737087272691,7.5442933,212.06,211.99,7.5442933]
[1737087274196,4.7178,212.02,211.99,7.5442933]
[1737087274895,4.7178,212.02,212.01,7.5442933]
[1737087276299,7.5442933,212.09,212.01,7.5442933]
[1737087276300,4.7175,212.03,212.01,7.5442933]
[1737087277300,4.7178,212.02,211.98,1.5253]
[1737087277496,7.5442933,212.05,211.98,1.5253]
[1737087278000,4.7183,212.0,211.97,9.0844933]
[1737087278204,7.5442933,212.05,211.97,1.5402]
[1737087278407,7.5442933,212.05,211.96,7.5442933]
[1737087278603,4.7187,211.98,211.96,7.5442933]
[1737087288000,7.5442933,212.03,211.93,1.5455]
[1737087288310,7.5442933,211.97,211.9,7.5442933]
[1737087289405,7.5442933,211.99,211.92,7.5442933]
[1737087289911,7.5442933,211.97,211.9,7.5442933]
[1737087290102,7.5442933,211.97,211.84,7.8944]
[1737087290306,7.5442933,211.97,211.9,7.5442933]
[1737087291107,4.7197,211.93,211.9,7.5442933]
[1737087291809,7.5442933,211.97,211.9,7.5442933]
[1737087292007,4.7199,211.92,211.9,7.5442933]
[1737087292613,4.7197,211.93,211.9,7.5442933]
[1737087294211,4.7199,211.92,211.89,7.5442933]
[1737087297115,7.5442933,211.97,211.89,7.5442933]
[1737087297415,7.5442933,211.95,211.84,3.0344]
[1737087297611,7.5442933,211.93,211.85,7.5442933]
[1737087298314,4.7208,211.88,211.85,7.5442933]
[1737087300313,7.5442933,211.86,211.77,7.5442933]
[1737087300808,4.7208,211.89,211.79,7.5442933]
[1737087301120,7.5442933,211.9,211.84,7.5442933]
[1737087301312,4.7212,211.86,211.82,7.5442933]
[1737087302918,4.7218,211.84,211.8,7.5442933]
[1737087303318,154.48124142,211.92,211.82,7.5442933]
[1737087303515,4.7216,211.85,211.82,7.5442933]
[1737087304719,4.7216,211.85,211.8,7.5442933]
[1737087305020,4.722,211.83,211.78,12.2672933]
[1737087305218,154.48124142,211.92,211.8,7.5442933]
[1737087305415,7.5442933,211.88,211.8,7.5442933]
[1737087305822,4.7217,211.85,211.8,7.5442933]
[1737087307016,7.5442933,211.84,211.75,3.0384]
[1737087307210,7.5442933,211.82,211.76,12.2676933]
[1737087307717,7.5442933,211.82,211.75,3.0384]
[1737087307917,4.7228,211.79,211.75,3.0384]
[1737087308318,7.5442933,211.82,211.75,3.0384]
[1737087308516,7.5442933,211.8,211.75,1.5717]
[1737087308719,7.5442933,211.78,211.69,3.1105]
[1737087308921,7.5442933,211.78,211.7,7.5442933]
[1737087310122,7.5442933,211.76,211.69,3.1105]
[1737087310622,168.66124142,211.88,211.68,2.0]
[1737087310623,7.5442933,211.74,211.68,2.0]
[1737087312126,4.7244,211.72,211.68,2.0]
[1737087313227,4.7238,211.75,211.69,4.725]
[1737087313426,7.5442933,211.74,211.68,2.0]
[1737087313925,4.7246,211.71,211.68,2.0]
[1737087314621,7.5442933,211.72,211.68,2.0]
[1737087314622,4.725,211.69,211.68,2.0]
[1737087315823,4.7248,211.7,211.68,2.0]
[1737087316418,7.5442933,211.72,211.68,2.0]
[1737087316624,4.725,211.69,211.68,2.0]
[1737087319033,4.7267,211.62,211.57,7.5442933]
[1737087320235,4.7267,211.62,211.57,12.2718933]
[1737087320429,7.5442933,211.63,211.57,12.2718933]
[1737087321032,7.5442933,211.63,211.58,4.7275]
[1737087323737,7.5442933,211.67,211.59,7.5442933]
[1737087323936,4.7257,211.67,211.59,7.5442933]
[1737087324136,4.7257,211.67,211.6,3.0117]
[1737087324536,4.7258,211.66,211.6,7.7385]
[1737087325037,4.7258,211.66,211.6,3.0117]
[1737087325337,4.7258,211.66,211.61,4.7268]
[1737087325838,4.7258,211.66,211.61,12.2710933]
[1737087328141,154.48124142,211.73,211.61,7.5442933]
[1737087328340,7.5442933,211.71,211.6,3.0117]
[1737087328543,154.48124142,211.73,211.65,7.5442933]
[1737087328743,162.02553472,211.73,211.65,7.5442933]
[1737087328941,4.7248,211.71,211.66,4.7257]
[1737087329941,4.7248,211.7,211.66,4.7257]
[1737087330446,4.7248,211.7,211.65,7.5442933]
[1737087331346,4.7248,211.7,211.65,12.2701933]
[1737087331647,4.7248,211.7,211.65,7.5442933]
[1737087332243,4.7248,211.7,211.65,12.2701933]
[1737087333237,4.7245,211.72,211.67,12.2696933]
[1737087334245,4.725,211.7,211.65,4.7257]
[1737087334445,4.725,211.7,211.61,1.4709]
[1737087334648,4.725,211.7,211.65,7.5442933]
[1737087335146,12.2687933,211.72,211.66,4.7255]
[1737087336343,7.5442933,211.72,211.66,4.7255]
[1737087336539,7.5442933,211.72,211.67,7.5442933]
[1737087336746,56.26650089,211.74,211.69,7.5442933]
[1737087336945,7.5442933,211.78,211.71,7.5442933]
[1737087337144,7.5442933,211.78,211.71,12.2686933]
[1737087339348,4.7235,211.76,211.71,12.2686933]
[1737087340048,4.7235,211.76,211.71,7.5442933]
[1737087340347,7.5442933,211.81,211.73,7.5442933]
[1737087341145,4.7228,211.79,211.74,4.7238]
[1737087345044,12.2668933,211.81,211.76,4.7234]
[1737087346853,4.88,211.91,211.77,12.2674933]
[1737087347050,4.88,211.91,211.69,4.4559]
[1737087347051,7.5442933,211.78,211.72,7.5442933]
[1737087347254,7.5442933,211.76,211.69,16.8801933]
[1737087347653,4.7237,211.75,211.71,4.7244]
[1737087347850,7.5442933,211.74,211.69,2.9999]
[1737087348246,4.7244,211.72,211.69,2.9999]
[1737087348959,4.7244,211.72,211.64,1.5599]
[1737087348960,12.2690933,211.7,211.64,1.5599]
[1737087349358,7.5442933,211.7,211.66,4.7256]
[1737087349952,12.2691933,211.7,211.66,4.7257]
[1737087350658,7.5442933,211.7,211.66,4.7257]
[1737087354456,4.7246,211.71,211.66,4.7257]
[1737087354853,12.2686933,211.72,211.67,4.7254]
[1737087360762,7.5442933,211.74,211.69,4.725]
[1737087361567,4.7241,211.73,211.69,4.725]
[1737087361766,4.7241,211.73,211.67,12.2695933]
[1737087362462,7.5442933,211.74,211.67,7.5442933]
[1737087362668,12.2681933,211.74,211.69,4.725]
[1737087363171,4.86,211.81,211.69,7.5442933]
[1737087363368,7.5442933,211.76,211.71,4.7245]
[1737087363971,4.7242,211.73,211.69,4.725]
[1737087367671,154.48124142,211.86,211.69,4.725]
[1737087367974,4.7239,211.74,211.69,4.725]
[1737087368774,4.7239,211.74,211.7,4.7248]
[1737087370076,12.2679933,211.76,211.71,4.7245]
[1737087370276,7.5442933,211.78,211.69,7.5442933]
[1737087371083,4.7235,211.76,211.64,1.5599]
[1737087371274,7.5442933,211.76,211.69,7.5442933]
[1737087371471,7.5442933,211.76,211.67,7.5442933]
[1737087372877,4.7242,211.73,211.69,4.725]
[1737087373773,4.7242,211.73,211.67,7.5442933]
[1737087373975,4.7242,211.73,211.68,4.7252]
[1737087374579,4.7242,211.73,211.69,4.725]
[1737087374975,4.7242,211.73,211.69,12.2692933]
[1737087377581,4.7242,211.73,211.69,4.725]
[1737087381587,7.5442933,211.75,211.64,1.5599]
[1737087381784,7.5442933,211.71,211.64,1.5599]
[1737087382794,7.5442933,211.71,211.63,35.39048142]
[1737087382795,7.5442933,211.71,211.63,9.1155933]
[1737087384196,4.7255,211.68,211.63,13.8419933]
[1737087384784,4.7255,211.68,211.63,9.1155933]
[1737087384989,4.725,211.7,211.65,12.2699933]
[1737087386698,7.5442933,211.71,211.63,1.5713]
[1737087386887,12.2693933,211.69,211.64,4.7261]
[1737087387791,4.7257,211.66,211.63,1.5713]
[1737087388694,4.7257,211.66,211.59,1.5657]
[1737087388894,4.7257,211.66,211.59,9.1099933]
[1737087389194,4.7257,211.66,211.61,4.7268]
[1737087389396,4.726,211.65,211.59,9.1099933]
[1737087389996,7.5442933,211.67,211.61,4.7268]
[1737087391094,4.7257,211.66,211.61,4.7268]
[1737087393101,4.7257,211.66,211.59,9.1099933]
[1737087393300,7.5442933,211.69,211.63,7.5442933]
[1737087393501,7.5442933,211.69,211.61,7.5442933]
[1737087393698,7.5442933,211.67,211.61,7.5442933]
[1737087393898,7.5442933,211.67,211.59,1.5657]
[1737087393899,4.7257,211.66,211.59,9.1099933]
[1737087394096,7.5442933,211.65,211.57,10.5596933]
[1737087395303,7.5442933,211.61,211.54,1.5677]
[1737087395697,12.2715933,211.59,211.54,6.2959]
[1737087396397,4.7279,211.56,211.51,7.7755]
[1737087397504,7.5442933,211.57,211.51,7.7755]
[1737087397799,7.5442933,211.57,211.52,4.7288]
[1737087398004,12.2719933,211.57,211.52,4.7288]
[1737087400805,7.5442933,211.57,211.52,4.7288]
[1737087402304,12.2719933,211.57,211.52,4.7288]
[1737087406714,7.5442933,211.57,211.51,3.0466]
[1737087406909,7.5442933,211.55,211.5,4.7291]
[1737087408207,12.2724933,211.55,211.5,4.7291]
[1737087410815,7.5442933,211.55,211.5,4.7291]
[1737087413116,154.48124142,211.65,211.5,7.5442933]
[1737087413317,7.5442933,211.58,211.5,7.5442933]
[1737087414817,4.7272,211.6,211.52,7.5442933]
[1737087415013,12.2714933,211.6,211.52,7.5442933]
[1737087415518,12.2717933,211.58,211.5,7.5442933]
[1737087417117,12.2717933,211.58,211.53,4.7286]
[1737087420822,12.2714933,211.6,211.52,7.5442933]
[1737087422320,12.2714933,211.6,211.55,4.7279]
[1737087422512,7.5442933,211.6,211.54,7.5442933]
[1737087423619,7.5442933,211.63,211.56,7.5442933]
[1737087424316,7.5442933,211.63,211.59,4.7272]
[1737087424624,12.2701933,211.65,211.58,7.5442933]
[1737087425125,7.5442933,211.63,211.52,1.5]
[1737087425519,7.5442933,211.63,211.56,7.5442933]
[1737087427113,7.5442933,211.63,211.59,4.7272]
[1737087427517,7.5442933,211.63,211.56,7.5442933]
[1737087429223,7.5442933,211.63,211.59,4.727]
[1737087429525,154.48124142,211.7,211.6,7.5442933]
[1737087429715,7.5442933,211.69,211.64,4.7261]
[1737087430114,7.5442933,211.69,211.61,1.4445]
[1737087430318,7.5442933,211.69,211.66,4.7256]
[1737087432221,7.5442933,211.67,211.62,1.5285]
[1737087432421,7.5442933,211.64,211.56,7.5442933]
[1737087432725,7.5442933,211.62,211.56,7.5442933]
[1737087434125,7.5442933,211.62,211.59,4.7272]
[1737087437621,7.5442933,211.62,211.55,1.5245]
[1737087437925,4.7269,211.61,211.55,6.2525]
[1737087438121,4.7269,211.61,211.55,1.5245]
[1737087439220,4.7269,211.61,211.56,4.7279]
[1737087439621,7.5442933,211.6,211.56,4.7279]
[1737087440021,7.5442933,211.6,211.57,4.7277]
[1737087442734,7.5442933,211.62,211.55,9.0687933]
[1737087442936,7.5442933,211.64,211.57,7.5442933]
[1737087444133,7.5442933,211.64,211.6,4.7268]
[1737087444326,4.7258,211.66,211.57,7.5442933]
[1737087444526,4.82,211.7,211.59,7.5442933]
[1737087444727,7.5442933,211.67,211.59,7.5442933]
[1737087445533,7.5442933,211.67,211.62,4.7264]
[1737087446436,4.725,211.69,211.64,4.726]
[1737087446635,7.5442933,211.68,211.64,4.726]
[1737087447137,12.2695933,211.68,211.63,4.7263]
[1737087449134,7.5442933,211.64,211.55,9.0687933]
[1737087449333,14.98701433,211.72,211.55,9.0687933]
[1737087449334,7.5442933,211.62,211.55,1.5245]
[1737087449638,7.5442933,211.59,211.55,1.5245]
[1737087451138,7.5442933,211.59,211.55,6.2526]
[1737087452236,7.5442933,211.57,211.51,4.7289]
[1737087453142,12.2719933,211.57,211.51,4.7289]
[1737087454139,7.5442933,211.55,211.51,4.7289]
[1737087454339,7.5442933,211.55,211.48,3.0026]
[1737087454944,4.7286,211.53,211.48,7.7323]
[1737087455940,4.7284,211.54,211.48,7.7323]
[1737087457243,7.5442933,211.53,211.48,7.7323]
[1737087459539,4.7284,211.54,211.49,4.7295]
[1737087459743,12.43099864,211.63,211.48,10.5468933]
[1737087459943,7.5442933,211.54,211.48,3.0026]
[1737087460146,7.5442933,211.52,211.45,4.7302]
[1737087460550,4.82,211.59,211.45,4.7302]
[1737087460753,7.5442933,211.51,211.45,4.7302]
[1737087461150,12.2733933,211.51,211.45,4.7302]
[1737087463249,12.2733933,211.51,211.46,4.7301]
[1737087463554,12.2733933,211.51,211.44,7.5442933]
[1737087463749,12.2733933,211.51,211.45,4.7304]
[1737087463953,7.5442933,211.49,211.42,7.5442933]
[1737087464149,7.5442933,211.47,211.41,3.0882]
[1737087464456,7.5442933,211.47,211.41,7.8195]
[1737087464647,7.5442933,211.47,211.41,3.0882]
[1737087465351,7.5442933,211.51,211.44,7.5442933]
[1737087466957,12.40595591,211.63,211.44,7.5442933]
[1737087467255,7.5442933,211.51,211.47,4.7299]
[1737087467848,7.5442933,211.51,211.48,4.7297]
[1737087468055,7.5442933,211.51,211.46,7.5442933]
[1737087468249,7.5442933,211.53,211.46,7.5442933]
[1737087468457,7.5442933,211.55,211.51,4.7288]
[1737087470661,12.2724933,211.55,211.5,4.7293]
[1737087471757,7.5442933,211.53,211.47,1.4337]
[1737087471965,12.2728933,211.53,211.48,4.7297]
[1737087473359,4.7288,211.52,211.47,1.4337]
[1737087473666,12.2730933,211.52,211.47,1.4337]
[1737087473961,7.5442933,211.5,211.47,1.4337]
[1737087474161,12.2730933,211.52,211.47,6.1636]
[1737087480862,4.7293,211.5,211.47,1.4337]
[1737087481967,4.7293,211.5,211.45,4.7304]
[1737087482471,4.7291,211.51,211.46,4.7301]
[1737087486875,7.5442933,211.52,211.44,7.5442933]
[1737087487065,4.7288,211.53,211.48,4.7296]
[1737087489375,12.2731933,211.52,211.47,4.7299]
[1737087490275,4.7291,211.51,211.46,4.7301]
[1737087493674,4.7291,211.51,211.44,7.5442933]
[1737087493880,7.5442933,211.52,211.47,4.7299]
[1737087495179,4.7288,211.53,211.47,4.7299]
[1737087495180,12.2730933,211.53,211.47,4.7299]
[1737087496482,12.2730933,211.53,211.44,7.5442933]
[1737087496677,12.2730933,211.53,211.48,4.7296]
[1737087497080,7.5442933,211.53,211.49,4.7295]
[1737087497381,7.5442933,211.51,211.42,8.9826933]
[1737087497575,7.5442933,211.48,211.42,1.4384]
[1737087497778,7.5442933,211.46,211.42,1.4384]
[1737087499181,7.5442933,211.46,211.42,6.1693]
[1737087499380,7.5442933,211.5,211.42,8.9826933]
[1737087499579,154.48124142,211.57,211.46,7.5442933]
[1737087499784,7.5442933,211.52,211.48,4.7295]
[1737087502585,4.7288,211.53,211.48,4.7295]
[1737087505088,7.5442933,211.52,211.48,4.7295]
[1737087505293,12.2731933,211.52,211.44,7.5442933]
[1737087506189,12.2731933,211.52,211.47,4.7298]
[1737087506691,4.7291,211.51,211.45,4.7302]
[1737087507188,4.7291,211.51,211.44,7.5442933]
[1737087508091,4.7291,211.51,211.46,4.7301]
[1737087510792,7.5442933,211.54,211.46,7.5442933]
[1737087512094,7.5442933,211.54,211.49,4.7295]
[1737087512892,4.7286,211.53,211.48,4.7297]
[1737087514891,4.728,211.56,211.51,4.729]
[1737087515198,12.2722933,211.56,211.51,4.729]
[1737087515596,7.5442933,211.56,211.52,4.7287]
[1737087517304,7.5442933,211.56,211.53,4.7285]
[1737087518104,12.2722933,211.56,211.52,4.7288]
[1737087519200,12.2722933,211.56,211.51,4.729]
[1737087529307,7.5442933,211.56,211.44,4.82]
[1737087529512,7.5442933,211.56,211.47,7.5442933]
[1737087529717,7.5442933,211.54,211.47,7.5442933]
[1737087530416,12.2726933,211.54,211.49,4.7293]
[1737087533418,12.2726933,211.54,211.5,4.7292]
[1737087534018,7.5442933,211.52,211.42,1.4384]
[1737087534216,7.5442933,211.52,211.47,4.7299]
[1737087535113,12.2731933,211.52,211.48,4.7297]
[1737087535721,4.7286,211.53,211.48,4.7297]
[1737087535925,12.2728933,211.53,211.48,4.7297]
[1737087538420,4.7279,211.56,211.51,4.729]
[1737087538620,7.5442933,211.55,211.51,4.729]
[1737087539024,12.2724933,211.55,211.5,4.7293]
[1737087540025,4.7282,211.55,211.5,4.7293]
[1737087540324,12.2724933,211.55,211.5,4.7293]
[1737087551939,4.7284,211.54,211.5,4.7293]
[1737087553137,7.5442933,211.55,211.5,4.7293]
[1737087553333,12.2724933,211.55,211.5,4.7293]
[1737087561850,4.7282,211.55,211.5,4.7293]
[1737087562051,12.2724933,211.55,211.5,4.7293]
[1737087563252,7.5442933,211.55,211.46,7.5442933]
[1737087563452,7.5442933,211.55,211.48,4.7295]
[1737087563951,7.5442933,211.53,211.48,4.7295]
[1737087564446,4.7293,211.5,211.42,8.9826933]
[1737087564647,4.7293,211.5,211.42,1.4384]
[1737087564955,12.2738933,211.49,211.44,4.7304]
[1737087566042,12.2738933,211.49,211.43,4.7308]
[1737087568353,7.5442933,211.47,211.42,1.4384]
[1737087568653,7.5442933,211.45,211.42,1.4384]
[1737087570052,7.5442933,211.45,211.42,6.1694]
[1737087570254,12.2735933,211.5,211.42,1.4384]
[1737087570454,12.2735933,211.5,211.43,7.5442933]
[1737087571056,12.2735933,211.5,211.45,4.7304]
[1737087571257,154.48124142,211.58,211.45,4.7304]
[1737087571258,4.7288,211.52,211.45,7.5442933]
[1737087573061,4.7288,211.52,211.47,4.7299]
[1737087573959,7.5442933,211.53,211.45,7.5442933]
[1737087574159,7.5442933,211.53,211.49,4.7295]
[1737087574454,7.5442933,211.53,211.45,7.5442933]
[1737087574860,7.5442933,211.53,211.48,4.7297]
[1737087575061,12.2729933,211.53,211.48,4.7297]
[1737087576861,4.7288,211.52,211.45,7.5442933]
[1737087577060,7.5442933,211.51,211.45,7.5442933]
[1737087578065,7.5442933,211.51,211.47,4.7299]
[1737087578671,4.7288,211.52,211.47,4.7299]
[1737087578970,12.2730933,211.52,211.47,4.7299]
[1737087580266,4.7291,211.51,211.45,4.7302]
[1737087580463,7.5442933,211.5,211.43,1.47]
[1737087580766,7.5442933,211.48,211.42,1.5016]
[1737087581770,7.5442933,211.48,211.43,4.7308]
[1737087584268,4.7295,211.49,211.44,4.7306]
[1737087591464,7.5442933,211.5,211.44,4.7306]
[1737087591670,12.2735933,211.5,211.44,4.7306]
[1737087592173,4.7296,211.49,211.44,4.7306]
[1737087592770,4.7296,211.49,211.43,4.7308]
[1737087593575,4.7296,211.49,211.42,1.5016]
[1737087593576,154.48124142,211.57,211.46,7.5442933]
[1737087593771,7.5442933,211.54,211.46,7.5442933]
[1737087594370,4.7287,211.53,211.48,4.7297]
[1737087598375,154.48124142,211.64,211.46,7.5442933]
[1737087598576,7.5442933,211.55,211.5,4.7291]
[1737087599978,7.5442933,211.53,211.47,4.7298]
[1737087601179,4.7288,211.52,211.47,4.7298]
[1737087603181,7.5442933,211.53,211.46,7.5442933]
[1737087603383,7.5442933,211.53,211.49,4.7294]
[1737087604083,7.5442933,211.53,211.49,4.729]
[1737087605382,154.48124142,211.64,211.5,7.5442933]
[1737087605584,7.5442933,211.57,211.5,7.5442933]
[1737087605784,7.5442933,211.57,211.52,4.7283]
[1737087607384,2.38410517,211.67,211.52,7.5442933]
[1737087607579,2.38410517,211.67,211.46,1.5812]
[1737087607580,7.5442933,211.62,211.54,7.5442933]
[1737087607979,7.5442933,211.62,211.58,4.727]
[1737087609082,7.5442933,211.62,211.55,2.9167]
[1737087609282,7.5442933,211.62,211.59,4.7268]
[1737087609486,7.5442933,211.62,211.56,7.5442933]
[1737087609686,7.5442933,211.64,211.6,4.7264]
[1737087610589,7.5442933,211.65,211.6,4.7264]
[1737087610785,4.7253,211.66,211.6,4.7264]
[1737087610981,7.5442933,211.65,211.6,4.7264]
[1737087612690,7.5442933,211.67,211.62,4.726]
[1737087612881,4.82,211.72,211.6,7.5442933]
[1737087613188,7.5442933,211.67,211.6,7.5442933]
[1737087614184,7.5442933,211.67,211.63,4.7258]
[1737087614586,4.7246,211.69,211.63,4.7258]
[1737087614785,7.5442933,211.68,211.63,4.7258]
[1737087615791,7.5442933,211.66,211.59,7.5442933]
[1737087616389,7.5442933,211.66,211.61,4.7263]
[1737087617895,12.2694933,211.66,211.6,4.7265]
[1737087618194,7.5442933,211.66,211.59,7.5442933]
[1737087618593,4.7248,211.69,211.59,7.5442933]
[1737087618791,7.5442933,211.67,211.59,7.5442933]
[1737087619391,4.82,211.74,211.63,4.7258]
[1737087619392,7.5442933,211.68,211.63,4.7258]
[1737087619685,4.7243,211.7,211.59,7.5442933]
[1737087619892,4.7243,211.7,211.64,4.7256]
[1737087620091,7.5442933,211.68,211.64,4.7256]
[1737087620484,4.7243,211.7,211.64,4.7256]
[1737087620692,7.5442933,211.68,211.64,4.7256]
[1737087621193,7.5442933,211.68,211.61,7.5442933]
[1737087621395,7.5442933,211.68,211.66,4.7252]
[1737087621694,7.5442933,211.68,211.62,3.085]
[1737087621993,7.5442933,211.68,211.64,4.7255]
[1737087622386,7.5442933,211.68,211.65,4.7253]
[1737087622589,7.5442933,211.7,211.65,4.7253]
[1737087625095,4.7242,211.71,211.65,4.7253]
[1737087625394,7.5442933,211.69,211.65,4.7253]
[1737087626500,4.7242,211.71,211.63,7.5442933]
[1737087626694,7.5442933,211.7,211.66,4.7252]
[1737087627397,7.5442933,211.7,211.67,4.725]
[1737087630098,7.5442933,211.68,211.65,4.7254]
[1737087630300,7.5442933,211.66,211.62,3.085]
[1737087630792,7.5442933,211.66,211.62,7.811]
[1737087631800,4.7238,211.73,211.62,7.811]
[1737087631999,7.5442933,211.67,211.62,7.811]
[1737087635001,12.2692933,211.67,211.62,7.811]
[1737087635302,7.5442933,211.67,211.62,3.085]
[1737087635502,4.7253,211.66,211.62,3.085]
[1737087636097,4.7253,211.66,211.62,7.8111]
[1737087637204,7.5442933,211.67,211.63,4.7259]
[1737087638008,12.2693933,211.67,211.62,7.8111]
[1737087638211,7.5442933,211.65,211.57,7.5442933]
[1737087638703,4.7259,211.64,211.58,4.727]
[1737087639008,7.5442933,211.65,211.58,4.727]
[1737087640109,4.7259,211.63,211.58,4.727]
[1737087641607,12.2697933,211.65,211.6,4.7265]
[1737087643612,4.7255,211.65,211.6,4.7265]
[1737087643907,4.7257,211.64,211.59,12.2709933]
[1737087644107,7.5442933,211.65,211.59,12.2709933]
[1737087644708,12.2697933,211.65,211.59,12.2709933]
[1737087645106,7.5442933,211.65,211.59,7.5442933]
[1737087646013,12.2697933,211.65,211.6,4.7265]
[1737087646307,7.5442933,211.65,211.59,7.5442933]
[1737087646613,4.727,211.59,211.55,6.56872203]
[1737087646809,12.2712933,211.59,211.54,19.70616609]
[1737087647110,12.2712933,211.59,211.53,26.27488812]
[1737087647911,12.2712933,211.59,211.52,7.5442933]
[1737087648111,12.2712933,211.59,211.54,4.7279]
[1737087649410,4.7266,211.6,211.54,4.7279]
[1737087649612,4.7266,211.6,211.54,12.2721933]
[1737087650311,4.7266,211.6,211.54,4.7279]
[1737087650508,12.2710933,211.59,211.54,4.7279]
[1737087651609,4.7268,211.59,211.54,4.7279]
[1737087652610,4.7272,211.57,211.52,12.2725933]
[1737087653011,7.5442933,211.6,211.52,12.2725933]
[1737087653309,7.5442933,211.58,211.52,4.7283]
[1737087653812,12.2713933,211.58,211.52,4.7283]
[1737087654409,4.7268,211.59,211.53,4.728]
[1737087654810,7.5442933,211.6,211.53,7.5442933]
[1737087656211,12.2708933,211.6,211.54,4.7278]
[1737087656613,12.2708933,211.6,211.53,7.5442933]
[1737087656818,154.48124142,211.67,211.55,7.5442933]
[1737087657114,7.5442933,211.65,211.57,7.5442933]
[1737087658213,4.7258,211.64,211.59,4.7268]
[1737087659516,4.7258,211.64,211.6,4.7266]
[1737087660516,154.48124142,211.67,211.59,7.5442933]
[1737087660716,162.02553472,211.67,211.59,7.5442933]
[1737087660916,7.5442933,211.65,211.59,7.5442933]
[1737087661618,7.5442933,211.65,211.58,7.5442933]
[1737087661821,7.5442933,211.63,211.56,7.5442933]
[1737087663121,7.5442933,211.63,211.58,4.7269]
[1737087664226,12.2701933,211.63,211.58,4.7269]
[1737087665227,4.7259,211.63,211.58,4.7269]
[1737087672524,43.82367229,211.68,211.62,4.7259]
[1737087672722,51.36796559,211.68,211.6,7.5442933]
[1737087672926,51.36796559,211.68,211.62,7.5442933]
[1737087673430,51.36796559,211.68,211.63,4.7258]
[1737087673431,56.09296559,211.68,211.63,4.7258]
[1737087674827,43.82367229,211.68,211.63,4.7258]
[1737087675021,43.82367229,211.68,211.64,7.5442933]
[1737087675933,4.7243,211.71,211.64,7.5442933]
[1737087676134,4.7243,211.71,211.66,4.7252]
[1737087677826,4.7245,211.7,211.64,4.7256]
[1737087678033,7.5442933,211.74,211.66,7.5442933]
[1737087679236,12.2678933,211.74,211.68,4.7246]
[1737087684439,12.2678933,211.74,211.68,12.2688933]
[1737087687343,7.5442933,211.74,211.68,12.2688933]
[1737087687544,4.7237,211.73,211.68,12.2688933]
[1737087687741,154.48124142,211.8,211.7,7.5442933]
[1737087687939,7.5442933,211.79,211.72,7.5442933]
[1737087688140,4.82,211.86,211.74,7.5442933]
[1737087688342,7.5442933,211.82,211.74,7.5442933]
[1737087688541,4.82,211.88,211.76,4.723]
[1737087688736,7.5442933,211.82,211.76,7.5442933]
[1737087688937,7.5442933,211.82,211.67,4.6979]
[1737087689144,7.5442933,211.78,211.71,7.5442933]
[1737087689542,4.723,211.77,211.72,4.7239]
[1737087690344,4.7232,211.75,211.7,4.7242]
[1737087690544,7.5442933,211.76,211.7,4.7242]
[1737087692147,4.7234,211.74,211.7,4.7242]
[1737087692342,7.5442933,211.76,211.68,7.5442933]
[1737087692546,7.5442933,211.74,211.67,4.6979]
[1737087694249,4.7237,211.73,211.68,4.7247]
[1737087694847,4.7237,211.73,211.69,4.7246]
[1737087695044,4.7231,211.76,211.68,7.5442933]
[1737087695248,7.5442933,211.77,211.68,7.5442933]
[1737087695446,7.5442933,211.77,211.7,4.7242]
[1737087695948,7.5442933,211.75,211.7,4.7242]
[1737087697251,4.7235,211.74,211.7,4.7242]
[1737087698245,4.7235,211.74,211.68,7.5442933]
[1737087698446,12.2680933,211.73,211.68,4.7246]
[1737087698748,12.2680933,211.73,211.67,4.6979]
[1737087699949,12.2680933,211.73,211.67,9.4229]
[1737087700345,4.82,211.83,211.67,4.6979]
[1737087700553,12.2676933,211.75,211.67,4.6979]
[1737087700851,12.2676933,211.75,211.68,7.5442933]
[1737087701750,4.7234,211.75,211.68,7.5442933]
[1737087701952,12.2676933,211.75,211.68,7.5442933]
[1737087702149,12.2676933,211.75,211.69,4.7245]
[1737087703445,4.7234,211.75,211.69,4.7245]
[1737087703652,4.7227,211.78,211.72,4.7239]
[1737087703955,7.5442933,211.78,211.7,7.5442933]
[1737087704653,7.5442933,211.8,211.72,7.5442933]
[1737087705050,7.5442933,211.8,211.74,7.5442933]